bitfinex/quotes_ETHUSD_20240821
["timestamp","ask_amount","ask_price","bid_price","bid_amount"]
[1724255571245,22.55,2606.2,2605.5,2.3614]
[1724255571543,7.33,2606.5,2606.1,3.83707]
[1724255571723,3.83597,2606.9,2606.3,6.10792]
[1724255571895,3.8362,2606.8,2606.3,6.773712]
[1724255572103,3.83597,2606.9,2606.4,0.16940782]
[1724255572452,3.83622,2606.8,2606.4,0.16940782]
[1724255572621,3.83597,2606.9,2606.4,4.00604782]
[1724255573142,3.83597,2606.9,2606.4,0.16940782]
[1724255573452,3.83612,2606.8,2606.4,0.16940782]
[1724255573615,3.83627,2606.7,2606.4,0.16940782]
[1724255574702,3.83627,2606.7,2606.3,2.2712]
[1724255574958,3.83612,2606.8,2606.3,2.2712]
[1724255575442,3.83612,2606.8,2606.4,0.16940782]
[1724255575662,3.83599,2606.9,2606.4,0.16940782]
[1724255575944,7.67207,2606.9,2606.4,0.16940782]
[1724255576114,3.83599,2606.9,2606.4,0.16940782]
[1724255576315,3.83621,2606.8,2606.4,0.16940782]
[1724255577662,7.67209,2606.9,2606.4,0.16940782]
[1724255577818,3.83599,2606.9,2606.4,0.7971446]
[1724255578625,3.83599,2606.9,2606.4,4.6338246]
[1724255580325,3.83599,2606.9,2606.4,0.7971446]
[1724255580527,3.83599,2606.9,2606.4,0.16940782]
[1724255580740,3.83599,2606.9,2606.4,3.83668]
[1724255580950,7.33,2607.0,2606.5,0.07672859]
[1724255581259,7.33,2607.0,2606.7,3.83621]
[1724255581418,31.73,2607.3,2606.8,4.00477991]
[1724255581419,35.5654,2607.3,2606.8,4.00477991]
[1724255581612,35.5654,2607.3,2606.8,0.621911]
[1724255581818,3.83555,2607.2,2606.7,3.83625]
[1724255582246,3.83555,2607.2,2606.8,0.16866991]
[1724255582444,3.83555,2607.2,2606.7,3.83625]
[1724255582671,31.73,2607.3,2606.9,3.83597]
[1724255582956,31.73,2607.3,2607.0,7.05378526]
[1724255582957,19.55,2607.3,2607.0,7.05378526]
[1724255583155,19.55,2607.3,2607.1,1.08897553]
[1724255583514,19.55,2607.3,2607.2,0.16826064]
[1724255583942,19.55,2607.3,2607.0,6.88532]
[1724255584126,19.55,2607.3,2607.2,0.16826064]
[1724255584688,19.55,2607.3,2607.0,3.0495]
[1724255584902,19.55,2607.3,2607.1,0.16836295]
[1724255585045,3.83584,2607.0,2606.5,3.83655]
[1724255585390,3.83584,2607.0,2605.7,4.5376]
[1724255585391,3.83612,2606.8,2606.6,0.16801681]
[1724255585739,3.83612,2606.8,2606.2,2.4612]
[1724255585944,3.83612,2606.8,2606.7,0.16791447]
[1724255586172,7.67182,2607.0,2606.5,3.83648]
[1724255586343,3.83591,2607.0,2606.5,3.83648]
[1724255586546,7.67182,2607.0,2606.6,0.16801681]
[1724255587141,3.83591,2607.0,2606.6,0.16801681]
[1724255587341,3.83561,2607.2,2606.6,0.16801681]
[1724255587557,23.9871096,2607.3,2606.7,3.83626]
[1724255587899,19.55,2607.3,2607.0,3.83576]
[1724255588593,19.55,2607.3,2607.1,0.1677355]
[1724255589696,19.55,2607.3,2606.9,3.8359]
[1724255589897,19.55,2607.3,2607.0,0.71783781]
[1724255590052,23.38547,2607.3,2607.0,0.16783781]
[1724255590254,23.38547,2607.3,2606.8,2.3293]
[1724255590454,3.83561,2607.2,2606.9,0.16794014]
[1724255590695,3.80506869,2607.2,2606.8,2.3293]
[1724255590860,3.80506869,2607.2,2606.9,0.16794014]
[1724255591063,3.80506869,2607.2,2606.8,2.945847]
[1724255591263,23.38547,2607.3,2606.9,0.16794014]
[1724255591501,23.38547,2607.3,2606.8,6.781957]
[1724255591796,23.38547,2607.3,2606.9,0.16794014]
[1724255592153,23.38547,2607.3,2606.8,6.781957]
[1724255592581,19.55,2607.3,2606.9,4.00390014]
[1724255592781,19.55,2607.3,2606.9,4.73475727]
[1724255593297,3.83483,2607.7,2607.2,3.83543]
[1724255593467,3.83483,2607.7,2607.3,0.1675309]
[1724255593668,3.83483,2607.7,2607.2,3.83543]
[1724255593866,3.83483,2607.7,2607.3,0.1675309]
[1724255594085,3.83483,2607.7,2607.2,4.657544]
[1724255594267,3.83483,2607.7,2607.3,0.1675309]
[1724255594469,3.83483,2607.7,2607.2,0.822114]
[1724255594470,3.83495,2607.6,2607.2,0.822114]
[1724255594675,3.83495,2607.6,2607.3,0.1675309]
[1724255594986,3.83495,2607.6,2607.2,0.822114]
[1724255595192,3.83495,2607.6,2607.4,0.16742861]
[1724255595504,3.83495,2607.6,2607.5,0.16732632]
[1724255596011,3.83483,2607.7,2607.1,3.83567]
[1724255596012,3.83483,2607.7,2607.3,2.3291]
[1724255596218,3.83483,2607.7,2607.5,0.16732632]
[1724255596377,3.83483,2607.7,2607.4,0.16742861]
[1724255596571,3.83483,2607.7,2606.7,2.2996]
[1724255596572,11.50437,2607.7,2607.6,0.16722405]
[1724255596916,3.83554,2607.2,2606.7,6.13584]
[1724255597211,3.83538,2607.3,2606.7,6.13576]
[1724255597414,3.83538,2607.3,2606.8,4.61765846]
[1724255598610,3.83538,2607.3,2606.9,3.83597]
[1724255598818,3.83538,2607.3,2606.8,4.61771846]
[1724255599110,3.83538,2607.3,2606.9,0.16792054]
[1724255600011,3.83563,2607.2,2606.9,0.16792054]
[1724255600310,3.83569,2607.1,2606.6,3.8364]
[1724255600520,6.946032,2607.3,2607.0,0.16763198]
[1724255600722,6.946032,2607.3,2606.7,3.83616]
[1724255601018,6.946032,2607.3,2607.1,0.16752967]
[1724255601174,3.83561,2607.2,2606.7,3.83616]
[1724255603971,3.83583,2607.0,2606.4,2.4161]
[1724255604226,3.83583,2607.0,2606.8,0.16783663]
[1724255604387,2.3436,2607.3,2606.8,3.83609]
[1724255604388,3.83542,2607.3,2606.8,3.83609]
[1724255604580,3.83542,2607.3,2606.9,0.16780781]
[1724255604780,3.83542,2607.3,2606.8,3.83609]
[1724255605012,3.83542,2607.3,2607.0,0.16770549]
[1724255605322,19.55,2607.3,2607.1,0.16760317]
[1724255606123,19.55,2607.3,2606.9,6.31966]
[1724255606327,19.55,2607.3,2607.2,0.16751557]
[1724255606476,3.83502,2607.6,2607.0,4.38575]
[1724255606477,19.55,2607.5,2607.1,3.83567]
[1724255606673,19.55,2607.5,2607.2,0.16746656]
[1724255606923,19.55,2607.5,2607.1,3.83565]
[1724255607085,19.55,2607.5,2607.3,0.16736427]
[1724255607286,19.55,2607.5,2607.1,3.83565]
[1724255607494,19.55,2607.5,2607.2,0.16746656]
[1724255608127,23.38509,2607.5,2607.2,0.16746656]
[1724255608422,19.55,2607.5,2607.2,0.16746656]
[1724255608826,3.0,2607.7,2607.3,6.08996]
[1724255608981,3.0,2607.7,2607.3,2.2546]
[1724255608982,3.83482,2607.7,2607.3,2.2546]
[1724255609180,3.83482,2607.7,2607.4,0.16726198]
[1724255609181,3.83509,2607.5,2607.4,0.16726198]
[1724255609596,3.83509,2607.5,2607.0,10.47616]
[1724255609821,7.66977,2607.7,2607.4,0.16709048]
[1724255610003,3.83498,2607.6,2607.1,4.883216]
[1724255610557,3.83516,2607.5,2607.2,0.16729506]
[1724255611667,3.83494,2607.6,2607.2,0.16729506]
[1724255611953,3.83461,2607.9,2607.3,3.83528]
[1724255612250,3.83461,2607.9,2607.4,4.61892851]
[1724255612451,3.83461,2607.9,2607.4,4.78599449]
[1724255614127,3.83459,2607.9,2607.4,4.78599449]
[1724255614326,3.83474,2607.8,2607.4,0.95087449]
[1724255614758,3.83474,2607.8,2607.4,4.78610449]
[1724255614960,3.83451,2607.9,2607.5,0.72142045]
[1724255615355,3.83451,2607.9,2607.6,0.16677324]
[1724255615647,3.0,2608.3,2607.6,0.16677324]
[1724255615868,3.83365,2608.5,2608.0,3.83427]
[1724255616030,0.60143652,2608.8,2608.0,0.383427]
[1724255616229,3.83313,2608.9,2608.4,3.83374]
[1724255616561,3.83313,2608.9,2608.5,0.16570129]
[1724255617630,3.0,2608.8,2608.5,0.16570129]
[1724255618925,3.83313,2608.9,2608.5,0.16570129]
[1724255619473,3.83313,2608.9,2608.6,0.16559909]
[1724255619778,3.83313,2608.9,2608.4,3.83375]
[1724255619980,3.83313,2608.9,2608.7,0.16549691]
[1724255620126,3.83313,2608.9,2608.5,0.39104164]
[1724255620333,3.0,2609.3,2608.6,6.45383909]
[1724255620530,3.83289,2609.0,2608.6,2.62039909]
[1724255620727,3.83326,2608.8,2608.6,0.16559909]
[1724255620960,3.83332,2608.7,2608.6,0.16559909]
[1724255621278,3.83326,2608.8,2608.3,3.83391]
[1724255621763,6.11053,2609.2,2608.5,3.83354]
[1724255621764,3.83278,2609.1,2608.5,3.83354]
[1724255621964,3.83268,2609.2,2608.7,3.83332]
[1724255622406,3.0,2609.3,2608.8,3.99796726]
[1724255622593,6.83254,2609.3,2608.8,0.16479726]
[1724255622911,6.83254,2609.3,2608.7,4.84642316]
[1724255623080,6.83254,2609.3,2608.7,4.84633316]
[1724255623277,4.4336823,2609.4,2608.8,3.99756432]
[1724255623278,4.4336723,2609.4,2608.8,3.99756432]
[1724255623500,4.4336723,2609.4,2608.9,0.88438975]
[1724255623814,3.83248,2609.3,2608.9,0.88438975]
[1724255624178,3.83248,2609.3,2608.8,3.83308]
[1724255624496,3.83259,2609.2,2608.9,0.16141404]
[1724255624667,3.83259,2609.2,2608.7,3.83332]
[1724255624874,3.83259,2609.2,2608.8,0.16151621]
[1724255625076,3.83239,2609.4,2608.9,2.4587]
[1724255625077,3.83238,2609.4,2608.9,2.4587]
[1724255625276,3.83216,2609.5,2609.0,0.62918]
[1724255625498,3.83216,2609.5,2609.0,4.46203]
[1724255625703,3.83216,2609.5,2609.1,0.16111674]
[1724255626036,11.1621,2609.6,2609.1,0.16111674]
[1724255626227,7.33,2609.6,2609.2,0.07664929]
[1724255626373,3.83172,2609.8,2609.3,6.79014]
[1724255626771,3.83151,2610.0,2609.5,3.83206]
[1724255627175,3.83122,2610.2,2609.6,0.16049354]
[1724255628121,7.66242,2610.2,2609.7,6.20242]
[1724255628322,3.8312,2610.2,2609.8,0.79640946]
[1724255628488,7.6624,2610.2,2609.8,0.79640946]
[1724255628824,3.83156,2609.9,2609.8,0.16011811]
[1724255629023,7.66312,2609.9,2609.8,0.16011811]
[1724255629176,3.83156,2609.9,2609.4,2.43]
[1724255629377,3.83142,2610.0,2609.5,0.55]
[1724255629615,3.8313,2610.1,2609.5,4.54248444]
[1724255629871,3.8313,2610.1,2609.6,0.69724844]
[1724255630173,3.8313,2610.1,2609.7,0.16022021]
[1724255630968,3.8315,2610.0,2609.7,0.16022021]
[1724255631185,3.83167,2609.9,2609.7,0.16022021]
[1724255631643,3.83131,2610.1,2609.4,6.2622]
[1724255631837,3.83131,2610.1,2609.6,3.83197]
[1724255632038,3.83131,2610.1,2609.6,7.66389]
[1724255632239,3.83131,2610.1,2609.7,0.16022021]
[1724255632860,7.66213,2610.3,2609.7,3.99207021]
[1724255633044,7.66213,2610.3,2609.8,0.78239802]
[1724255633235,10.33,2610.5,2609.9,0.15942402]
[1724255633848,3.83098,2610.3,2609.9,0.15942402]
[1724255634243,3.83121,2610.2,2609.9,0.15942402]
[1724255634976,7.66208,2610.3,2609.9,0.15942402]
[1724255635172,7.66203,2610.3,2609.9,1.25639422]
[1724255635345,3.83098,2610.3,2609.9,1.25639422]
[1724255635772,10.33,2610.5,2609.9,0.15942402]
[1724255635980,3.83141,2610.0,2609.9,0.15942402]
[1724255636160,3.83141,2610.0,2609.5,6.31914]
[1724255636699,3.83141,2610.0,2609.6,0.15973032]
[1724255636858,3.83141,2610.0,2609.6,0.80762535]
[1724255637258,7.66293,2610.0,2609.6,0.80762535]
[1724255637485,3.83185,2609.7,2609.6,0.15973032]
[1724255638076,3.83185,2609.7,2609.2,3.83258]
[1724255638453,3.83201,2609.6,2609.3,0.1600367]
[1724255638653,3.83186,2609.7,2609.0,6.10276]
[1724255639093,3.83186,2609.7,2609.1,0.16024099]
[1724255639405,3.83186,2609.7,2609.1,0.78654109]
[1724255639602,3.83176,2609.8,2609.2,6.10048]
[1724255639955,7.66357,2609.8,2609.3,3.99240137]
[1724255640155,7.66357,2609.8,2609.3,0.16005137]
[1724255640392,3.83203,2609.6,2609.3,0.16005137]
[1724255640702,3.83176,2609.8,2609.3,4.13781515]
[1724255641257,3.83151,2610.0,2609.3,0.30542515]
[1724255641479,3.83179,2609.8,2609.3,0.30542515]
[1724255641672,3.0,2609.9,2609.4,3.99222924]
[1724255642007,3.83152,2610.0,2609.6,2.4485]
[1724255642185,3.83152,2610.0,2609.7,0.628063]
[1724255642503,3.83152,2610.0,2609.7,0.78770589]
[1724255643053,3.83121,2610.2,2609.7,0.78770589]
[1724255643359,7.66244,2610.2,2609.7,4.61952589]
[1724255643567,3.83121,2610.2,2609.7,4.61952589]
[1724255643803,3.83121,2610.2,2609.8,0.70680259]
[1724255644002,3.83093,2610.4,2609.8,0.70680259]
[1724255644166,11.16055,2610.6,2609.9,0.15943869]
[1724255644511,3.83105,2610.3,2609.8,0.70680259]
[1724255644809,3.83128,2610.1,2609.8,0.70680259]
[1724255645198,3.8315,2610.0,2609.9,0.15935556]
[1724255645603,3.83157,2609.9,2609.6,2.4485]
[1724255646183,3.83128,2610.1,2609.6,2.4485]
[1724255646385,3.83083,2610.4,2609.9,3.83155]
[1724255646688,3.83083,2610.4,2610.0,0.617115]
[1724255647085,7.66206,2610.3,2610.0,0.617115]
[1724255647344,3.83099,2610.3,2609.8,2.3396]
[1724255648636,3.83099,2610.3,2609.8,6.1713]
[1724255649151,3.83099,2610.3,2609.9,0.15907681]
[1724255649720,7.66206,2610.3,2609.9,0.15907681]
[1724255649936,3.83099,2610.3,2609.9,0.84711649]
[1724255650617,7.66204,2610.3,2609.9,0.84711649]
[1724255651053,3.83113,2610.2,2609.9,0.84711649]
[1724255651554,3.83099,2610.3,2609.9,0.84711649]
[1724255652045,3.8312,2610.2,2609.9,0.68803968]
[1724255653050,3.8312,2610.2,2610.0,0.30276397]
[1724255653357,3.8312,2610.2,2610.0,0.46169959]
[1724255655856,3.83086,2610.4,2610.0,0.46169959]
[1724255655857,3.83099,2610.3,2610.0,0.46169959]
[1724255656268,3.83116,2610.2,2610.0,0.46169959]
[1724255656954,3.83127,2610.1,2610.0,0.15893562]
[1724255657122,7.66254,2610.1,2610.0,0.15893562]
[1724255657322,3.83149,2610.0,2609.8,2.3396]
[1724255657579,3.83149,2610.0,2609.9,0.1589106]
[1724255658375,3.83128,2610.1,2609.9,0.1589106]
[1724255658726,3.83115,2610.2,2609.9,0.1589106]
[1724255659159,3.83093,2610.4,2609.9,0.24985106]
[1724255659468,3.83093,2610.4,2609.9,4.08141106]
[1724255659658,7.66189,2610.4,2609.9,4.08141106]
[1724255659829,7.66189,2610.4,2610.0,0.15880852]
[1724255660022,3.83101,2610.3,2610.0,0.15880852]
[1724255660226,3.83101,2610.3,2610.0,0.81679648]
[1724255661675,7.66254,2610.1,2610.0,0.15880852]
[1724255662034,3.83183,2609.8,2609.5,2.3032]
[1724255662375,3.83187,2609.7,2609.6,0.15379523]
[1724255662527,7.66374,2609.7,2609.6,0.15379523]
[1724255662732,7.66374,2609.7,2608.9,3.83294]
[1724255662733,3.83226,2609.5,2608.9,2.4288]
[1724255662974,3.83226,2609.5,2609.0,3.83287]
[1724255663732,3.83195,2609.7,2609.0,3.83279]
[1724255663930,3.83195,2609.7,2608.9,2.4288]
[1724255663931,3.83163,2609.9,2609.4,3.83219]
[1724255664167,3.83163,2609.9,2609.3,2.4671]
[1724255664168,3.83163,2609.9,2609.5,0.15389735]
[1724255664331,3.83192,2609.7,2609.5,0.15389735]
[1724255664533,3.832,2609.6,2609.3,2.4671]
[1724255664740,3.832,2609.6,2609.4,0.15399947]
[1724255665164,3.83162,2609.9,2609.4,4.24832942]
[1724255665680,3.83153,2610.0,2609.4,0.41610942]
[1724255665881,3.0,2610.1,2609.4,0.41610942]
[1724255665882,3.0,2610.1,2609.6,3.83194]
[1724255666038,3.83118,2610.2,2609.6,3.83194]
[1724255666354,3.83092,2610.4,2609.8,3.83167]
[1724255666355,3.83098,2610.3,2609.8,3.83167]
[1724255666555,3.83098,2610.3,2609.9,0.45353631]
[1724255666758,3.83098,2610.3,2609.9,0.60702523]
[1724255667699,3.83092,2610.4,2609.9,0.60702523]
[1724255667700,3.83092,2610.4,2610.0,2.4078]
[1724255668055,3.83092,2610.4,2610.1,0.15328476]
[1724255669090,7.66187,2610.4,2610.1,0.15328476]
[1724255669297,3.83092,2610.4,2610.1,0.15328476]
[1724255669587,3.83092,2610.4,2609.9,0.45353631]
[1724255669588,3.83101,2610.3,2610.2,0.15318269]
[1724255670100,3.83115,2610.2,2609.7,2.4305]
[1724255670271,3.83144,2610.0,2609.6,3.832]
[1724255670476,3.83115,2610.2,2609.8,0.15356668]
[1724255670656,3.83115,2610.2,2609.7,3.98541878]
[1724255670996,3.83115,2610.2,2609.8,0.15359102]
[1724255671191,3.83115,2610.2,2609.8,3.98528102]
[1724255671391,3.83115,2610.2,2609.8,3.83169]
[1724255671550,3.83115,2610.2,2609.9,0.15348892]
[1724255672575,3.83137,2610.1,2609.9,0.15348892]
[1724255672782,3.83141,2610.0,2609.9,0.15348892]
[1724255672959,3.83127,2610.1,2609.6,3.832]
[1724255673160,7.66262,2610.1,2609.7,0.78236772]
[1724255673489,3.83127,2610.1,2609.7,0.78236772]
[1724255673775,3.83144,2610.0,2609.7,0.78236772]
[1724255673977,3.83126,2610.2,2609.7,0.78236772]
[1724255674351,3.83127,2610.1,2609.7,0.78236772]
[1724255675431,7.66267,2610.1,2609.8,0.46143477]
[1724255675627,3.83127,2610.1,2609.7,0.78236772]
[1724255675840,3.83127,2610.1,2609.9,0.15354247]
[1724255675997,3.83127,2610.1,2609.8,0.15364456]
[1724255676203,3.83127,2610.1,2610.0,0.15344038]
[1724255676706,3.83127,2610.1,2609.6,7.66384]
[1724255677033,3.83127,2610.1,2609.7,1.16559067]
[1724255679267,3.83171,2609.8,2609.7,0.15374667]
[1724255679634,3.83171,2609.8,2609.3,6.27505]
[1724255679967,3.83187,2609.7,2609.3,6.27505]
[1724255680187,3.83187,2609.7,2609.4,0.15412118]
[1724255680472,3.83208,2609.6,2609.4,0.15412118]
[1724255680670,3.83187,2609.7,2609.2,3.83259]
[1724255680858,3.83187,2609.7,2609.5,0.15401905]
[1724255681038,3.83187,2609.7,2609.2,4.91348038]
[1724255681239,3.83187,2609.7,2609.6,0.15397049]
[1724255681438,3.83187,2609.7,2609.2,4.91348038]
[1724255681934,3.83203,2609.6,2609.3,0.15430608]
[1724255682169,3.83202,2609.6,2609.2,1.08089038]
[1724255682465,3.83202,2609.6,2609.4,0.15420882]
[1724255682665,3.83202,2609.6,2609.3,0.15431095]
[1724255682891,3.83202,2609.6,2609.5,0.15410669]
[1724255683090,3.83202,2609.6,2609.4,0.15420882]
[1724255683280,3.83202,2609.6,2609.5,0.15410669]
[1724255683592,3.83202,2609.6,2609.2,1.08089038]
[1724255683887,3.83187,2609.7,2609.5,0.15410669]
[1724255684059,3.83187,2609.7,2609.2,4.91346038]
[1724255684272,3.83167,2609.9,2609.6,0.15432104]
[1724255684602,3.83167,2609.9,2609.4,6.16842]
[1724255684804,7.66331,2609.9,2609.4,6.16842]
[1724255684944,7.66331,2609.9,2609.5,0.15442316]
[1724255685150,3.83164,2609.9,2609.5,0.15442316]
[1724255685849,6.83138,2610.1,2609.6,3.83194]
[1724255686054,7.66274,2610.1,2609.6,3.83194]
[1724255686267,3.83136,2610.1,2609.7,0.15413128]
[1724255686479,3.83136,2610.1,2609.7,0.93594641]
[1724255687183,7.66271,2610.1,2609.7,0.93594641]
[1724255687380,7.33,2610.3,2609.8,2.2577]
[1724255687381,3.83118,2610.2,2609.8,2.2577]
[1724255688009,3.83118,2610.2,2609.9,0.15385892]
[1724255688413,3.83128,2610.1,2609.9,0.15385892]
[1724255688716,3.83114,2610.2,2609.9,0.85638032]
[1724255689316,3.83109,2610.3,2609.9,0.85638032]
[1724255689317,3.83128,2610.1,2609.9,0.85638032]
[1724255690306,19.55,2610.5,2610.0,3.8314]
[1724255690518,3.83078,2610.5,2610.0,3.8314]
[1724255690807,3.83078,2610.5,2610.1,0.62231595]
[1724255691173,3.83099,2610.3,2610.1,0.62231595]
[1724255691369,3.83099,2610.3,2610.1,0.15353792]
[1724255691815,3.83112,2610.2,2609.9,0.7025214]
[1724255692018,3.83129,2610.1,2609.9,0.7025214]
[1724255692170,3.83129,2610.1,2609.7,0.78181513]
[1724255692375,3.83143,2610.0,2609.7,0.78181513]
[1724255693224,3.83143,2610.0,2609.5,2.4451]
[1724255693573,3.83143,2610.0,2609.5,6.27725]
[1724255694200,3.83143,2610.0,2609.6,0.15400459]
[1724255694921,11.16094,2610.4,2609.6,3.98593459]
[1724255695127,3.83098,2610.3,2609.8,3.83169]
[1724255695427,3.83098,2610.3,2610.0,2.4667]
[1724255695625,3.83098,2610.3,2609.9,0.53686728]
[1724255695780,3.8314,2610.1,2609.7,2.4667]
[1724255696120,3.83115,2610.2,2609.7,6.29853]
[1724255696320,3.83115,2610.2,2609.8,1.013051]
[1724255696824,3.83098,2610.3,2609.8,4.844741]
[1724255697189,3.83098,2610.3,2609.8,4.844681]
[1724255697621,3.83114,2610.2,2609.8,4.844681]
[1724255699023,7.33,2610.4,2609.7,2.4667]
[1724255699205,3.83113,2610.2,2609.6,3.83191]
[1724255699608,3.83143,2610.0,2609.6,3.83191]
[1724255699922,3.83143,2610.0,2609.6,4.826784]
[1724255700430,3.8316,2609.9,2609.6,0.994874]
[1724255700597,3.83171,2609.8,2609.5,2.2846]
[1724255701125,3.83204,2609.6,2609.0,6.31086]
[1724255701326,3.83204,2609.6,2609.1,3.83264]
[1724255701510,3.83186,2609.7,2609.2,3.83256]
[1724255702229,3.83178,2609.8,2609.0,7.32082438]
[1724255702562,10.15581,2609.6,2609.0,3.48806438]
[1724255702881,7.66421,2609.6,2609.0,7.32087438]
[1724255703002,7.66421,2609.6,2609.1,1.11537644]
[1724255703399,3.8321,2609.6,2609.1,4.94809644]
[1724255704627,3.8321,2609.6,2609.1,4.94803644]
[1724255704817,3.83195,2609.7,2609.2,3.83248]
[1724255705012,3.83143,2610.0,2609.3,0.07664107]
[1724255705276,7.33,2610.1,2609.3,0.07664107]
[1724255705277,7.33,2610.1,2609.5,3.83211]
[1724255705421,7.33,2610.1,2609.6,2.4535]
[1724255705736,3.83121,2610.2,2609.7,3.83185]
[1724255706037,7.66246,2610.2,2609.7,3.83185]
[1724255706240,3.83098,2610.3,2609.7,4.843516]
[1724255706539,3.83079,2610.5,2609.9,3.83149]
[1724255706837,3.83092,2610.4,2609.9,3.83149]
[1724255707017,3.83076,2610.5,2610.0,2.2931]
[1724255707789,7.66152,2610.5,2610.0,2.2931]
[1724255708096,3.83076,2610.5,2610.1,0.612457]
[1724255708291,3.83092,2610.4,2610.1,0.612457]
[1724255708922,3.83076,2610.5,2610.1,0.612457]
[1724255709441,3.83076,2610.5,2610.2,0.15342609]
[1724255709741,3.83076,2610.5,2610.2,0.8424564]
[1724255710305,3.83076,2610.5,2610.2,0.15342609]
[1724255710510,3.83097,2610.3,2610.2,0.15342609]
[1724255710708,3.83097,2610.3,2610.0,2.2931]
[1724255711020,3.83097,2610.3,2610.1,0.15352816]
[1724255711587,3.83112,2610.2,2610.1,0.15352816]
[1724255711819,3.83097,2610.3,2609.7,6.25826]
[1724255711987,3.83097,2610.3,2609.8,0.15383441]
[1724255712199,3.83097,2610.3,2609.7,11.09902]
[1724255712406,7.66202,2610.3,2609.8,0.15383441]
[1724255712616,7.66202,2610.3,2609.7,7.26726]
[1724255712871,7.66202,2610.3,2609.8,0.15383441]
[1724255713053,3.83097,2610.3,2609.8,4.72763385]
[1724255713257,3.83097,2610.3,2609.8,0.74210944]
[1724255713464,3.83097,2610.3,2609.9,0.15373232]
[1724255714064,7.66208,2610.3,2609.9,0.15373232]
[1724255714276,3.83097,2610.3,2609.9,1.2523155]
[1724255715436,7.66205,2610.3,2609.9,1.2523155]
[1724255715635,7.66205,2610.3,2609.9,0.15373232]
[1724255715881,3.83097,2610.3,2609.9,0.15373232]
[1724255716081,3.83097,2610.3,2609.8,3.83168]
[1724255716308,3.83097,2610.3,2610.0,0.15363023]
[1724255716617,3.83097,2610.3,2609.9,0.15373232]
[1724255716765,3.83097,2610.3,2610.0,0.15363023]
[1724255717137,3.83097,2610.3,2610.1,0.15352816]
[1724255717338,7.66205,2610.3,2610.1,0.15352816]
[1724255717538,3.83097,2610.3,2609.8,3.83168]
[1724255717734,3.83097,2610.3,2610.2,0.15342609]
[1724255718184,3.83097,2610.3,2609.8,4.840671]
[1724255718185,3.83097,2610.3,2609.8,1.008991]
[1724255718384,11.16041,2610.7,2609.7,6.25823]
[1724255718587,3.83114,2610.2,2609.8,0.15383441]
[1724255718741,3.83114,2610.2,2609.8,3.98551441]
[1724255718935,3.83114,2610.2,2609.9,0.15373232]
[1724255719451,7.6618,2610.4,2609.9,0.15373232]
[1724255719655,3.83099,2610.3,2609.9,1.17809655]
[1724255719887,3.83099,2610.3,2609.9,5.00965655]
[1724255720453,3.83099,2610.3,2609.9,0.15373232]
[1724255720652,3.83083,2610.4,2609.9,0.15373232]
[1724255720653,3.83114,2610.2,2609.9,0.15373232]
[1724255720858,3.83141,2610.0,2609.9,0.15373232]
[1724255721037,3.83134,2610.1,2609.9,0.15373232]
[1724255721237,3.83124,2610.2,2609.7,6.25834]
[1724255721443,3.83093,2610.4,2609.8,0.15373218]
[1724255721644,3.83093,2610.4,2609.9,3.83147]
[1724255721941,7.66184,2610.4,2610.0,0.153528]
[1724255722168,3.83091,2610.4,2610.0,0.153528]
[1724255722381,3.83091,2610.4,2610.1,2.3783]
[1724255722790,3.83091,2610.4,2610.2,0.15332385]
[1724255723244,7.66184,2610.4,2610.2,0.15332385]
[1724255723447,7.66182,2610.4,2610.2,0.15332385]
[1724255723659,3.83091,2610.4,2610.2,0.15332385]
[1724255724070,7.66185,2610.4,2610.2,0.15332385]
[1724255724384,3.83097,2610.3,2610.0,0.7816498]
[1724255724892,3.83097,2610.3,2610.1,0.6147379]
[1724255725599,3.83091,2610.4,2610.1,0.6147379]
[1724255725600,3.83084,2610.4,2610.1,0.6147379]
[1724255726498,3.83054,2610.6,2610.2,2.4173]
[1724255726793,7.66115,2610.6,2610.2,2.4173]
[1724255726989,7.66115,2610.6,2610.3,0.15322179]
[1724255727296,7.33,2611.0,2610.5,3.83061]
[1724255727501,7.33,2611.0,2610.3,0.68630338]
[1724255727502,3.83019,2610.9,2610.4,4.53386973]
[1724255727647,3.83019,2610.9,2610.5,3.83067]
[1724255727844,3.83019,2610.9,2610.6,0.15291565]
[1724255728062,3.83019,2610.9,2610.4,4.38075]
[1724255728261,3.83019,2610.9,2610.7,0.15253617]
[1724255728463,3.83019,2610.9,2610.4,8.2115]
[1724255728665,3.83019,2610.9,2610.8,0.15243415]
[1724255728863,3.83019,2610.9,2610.5,0.82115]
[1724255729198,3.83017,2610.9,2610.5,0.82115]
[1724255729350,3.83017,2610.9,2610.6,0.1526382]
[1724255729745,7.66038,2610.9,2610.6,0.1526382]
[1724255730050,3.83039,2610.7,2610.6,0.1526382]
[1724255730249,3.83039,2610.7,2610.2,6.24835]
[1724255730478,3.83039,2610.7,2610.3,0.6709662]
[1724255730664,3.83039,2610.7,2610.3,0.82356012]
[1724255732359,6.11826,2610.8,2610.3,0.15259392]
[1724255732559,2.288,2610.8,2610.3,0.15259392]
[1724255732766,3.83083,2610.4,2609.9,3.83154]
[1724255732962,7.66174,2610.4,2609.9,3.83154]
[1724255733300,26.88,2610.7,2609.7,2.3067]
[1724255733506,3.83122,2610.2,2609.7,2.3067]
[1724255734396,3.83122,2610.2,2609.7,6.13853]
[1724255734703,3.83098,2610.3,2609.7,6.13853]
[1724255735251,7.66205,2610.3,2609.7,6.13853]
[1724255735466,3.83098,2610.3,2609.7,6.13853]
[1724255735798,3.83098,2610.3,2609.7,7.135572]
[1724255736407,3.83098,2610.3,2609.8,3.83163]
[1724255737053,3.83076,2610.5,2609.9,3.83152]
[1724255737551,3.83076,2610.5,2610.0,3.83139]
[1724255738657,3.83054,2610.6,2610.1,3.83124]
[1724255738857,3.83054,2610.6,2610.1,7.012612]
[1724255739311,3.83054,2610.6,2610.2,0.14792179]